bitfinex-derivatives/quotes_SOLF0:USTF0_20251020
["timestamp","ask_amount","ask_price","bid_price","bid_amount"]
[1760965044122,3.37664331,192.47,192.35,6.44117028]
[1760965044716,4.6761,192.44,192.36,4.6778]
[1760965045521,4.6764,192.43,192.36,4.6778]
[1760965045722,3.37664331,192.47,192.36,4.6778]
[1760965046720,4.6769,192.41,192.34,11.11947028]
[1760965046928,3.37664331,192.47,192.34,4.6783]
[1760965047424,3.37664331,192.44,192.34,4.6783]
[1760965048019,4.6771,192.4,192.34,4.6783]
[1760965050725,4.6771,192.4,192.32,13.28116945]
[1760965051326,4.6773,192.39,192.32,13.28116945]
[1760965052026,2.16119917,192.39,192.32,6.44117028]
[1760965052227,2.16119917,192.39,192.31,6.44117028]
[1760965052930,4.6781,192.36,192.31,6.44117028]
[1760965054431,2.16119917,192.39,192.31,6.44117028]
[1760965054735,2.16119917,192.37,192.3,6.44117028]
[1760965055433,2.16119917,192.37,192.29,6.44117028]
[1760965055635,4.6788,192.33,192.28,6.44117028]
[1760965056233,4.6781,192.36,192.28,6.44117028]
[1760965056426,4.6781,192.36,192.27,2.16119917]
[1760965056427,4.6781,192.36,192.29,8.60236945]
[1760965056828,2.16119917,192.37,192.29,8.60236945]
[1760965057735,2.16119917,192.37,192.29,2.16119917]
[1760965057934,4.6783,192.35,192.29,6.84069917]
[1760965060940,4.6783,192.35,192.29,2.16119917]
[1760965061638,4.6786,192.34,192.29,2.16119917]
[1760965061834,3.80213625,192.42,192.27,4.68]
[1760965061835,2.16119917,192.35,192.27,2.16119917]
[1760965062737,4.679,192.32,192.27,2.16119917]
[1760965063834,4.6793,192.31,192.25,2.16119917]
[1760965064039,2.16119917,192.35,192.25,2.16119917]
[1760965065040,4.6788,192.33,192.27,2.16119917]
[1760965065733,4.6783,192.35,192.27,2.16119917]
[1760965065929,4.6783,192.35,192.29,2.16119917]
[1760965067048,4.6783,192.35,192.29,6.84069917]
[1760965068241,4.6785,192.34,192.27,4.68]
[1760965068446,2.16119917,192.35,192.27,4.68]
[1760965069946,4.6788,192.33,192.27,4.68]
[1760965070942,4.6788,192.33,192.28,2.16119917]
[1760965073546,4.6791,192.32,192.28,2.16119917]
[1760965075341,4.6786,192.34,192.28,2.16119917]
[1760965075550,2.16119917,192.41,192.32,2.16119917]
[1760965077044,4.678,192.36,192.32,2.16119917]
[1760965081553,43.16,192.45,192.34,2.16119917]
[1760965081752,2.16119917,192.43,192.36,2.16119917]
[1760965082146,4.6774,192.39,192.36,2.16119917]
[1760965083653,4.6768,192.41,192.36,2.16119917]
[1760965087850,4.6764,192.43,192.38,2.16119917]
[1760965089256,4.6764,192.43,192.36,4.6778]
[1760965089452,4.6766,192.42,192.39,2.16119917]
[1760965090456,4.6768,192.41,192.37,2.16119917]
[1760965091948,2.16119917,192.44,192.35,2.16119917]
[1760965092949,2.16119917,192.44,192.34,2.16119917]
[1760965093257,2.16119917,192.42,192.34,2.16119917]
[1760965094062,4.6773,192.39,192.34,2.16119917]
[1760965100361,4.6769,192.41,192.34,6.83949917]
[1760965102763,4.6769,192.41,192.35,4.6781]
[1760965103756,2.16119917,192.42,192.36,4.6778]
[1760965104365,6.83779917,192.42,192.36,4.6778]
[1760965107662,6.83779917,192.42,192.37,4.6776]
[1760965110868,4.6766,192.42,192.37,4.6776]
[1760965116663,4.6766,192.42,192.33,3.37579878]
[1760965116664,4.6761,192.44,192.38,4.6774]
[1760965116867,4.6761,192.44,192.33,3.37579878]
[1760965116868,3.37579878,192.46,192.33,3.37579878]
[1760965117169,3.79534121,192.47,192.36,3.37579878]
[1760965117362,3.79534121,192.49,192.39,3.37579878]
[1760965117668,3.37579878,192.53,192.39,3.37579878]
[1760965117869,3.37579878,192.53,192.39,9.81150951]
[1760965118375,4.43442006,192.55,192.4,6.43571073]
[1760965118580,3.37579878,192.52,192.4,6.43571073]
[1760965119070,4.6747,192.5,192.44,4.6759]
[1760965119669,8.04989878,192.52,192.45,4.6757]
[1760965119868,7.81021884,192.55,192.42,3.37579878]
[1760965120070,3.37579878,192.55,192.42,9.81150951]
[1760965120373,7.81021884,192.58,192.43,6.43571073]
[1760965120674,3.37579878,192.58,192.43,6.43571073]
[1760965120875,3.37579878,192.55,192.46,4.6755]
[1760965121974,8.04929878,192.55,192.47,4.6751]
[1760965122166,4.6735,192.55,192.47,4.6751]
[1760965122362,3.37579878,192.58,192.47,4.6751]
[1760965123973,4.6732,192.56,192.47,4.6751]
[1760965124172,3.37579878,192.58,192.47,4.6751]
[1760965125073,4.6735,192.55,192.47,4.6751]
[1760965125878,4.6737,192.54,192.47,4.6751]
[1760965132377,4.6737,192.54,192.43,3.37579878]
[1760965132378,4.6732,192.56,192.48,4.6749]
[1760965132773,3.37579878,192.58,192.48,4.6749]
[1760965133981,4.6734,192.55,192.48,4.6749]
[1760965134984,4.6734,192.55,192.39,9.73259891]
[1760965134985,3.37579878,192.58,192.39,3.37579878]
[1760965135178,3.37579878,192.53,192.39,3.37579878]
[1760965136073,4.6741,192.52,192.44,4.6758]
[1760965138882,4.6744,192.51,192.44,4.6758]
[1760965140982,4.6746,192.5,192.44,4.6758]
[1760965141286,3.37579878,192.53,192.42,4.6764]
[1760965141489,3.37579878,192.5,192.42,4.6764]
[1760965141992,3.37579878,192.47,192.36,6.43571073]
[1760965143084,4.6759,192.45,192.38,4.6772]
[1760965143279,9.348,192.53,192.36,6.43571073]
[1760965143477,3.37579878,192.5,192.37,6.43571073]
[1760965143682,4.6749,192.49,192.39,6.43571073]
[1760965144185,4.6749,192.49,192.39,9.81150951]
[1760965144491,4.6744,192.51,192.4,6.43571073]
[1760965144885,4.6744,192.51,192.41,6.43571073]
[1760965145888,4.674,192.53,192.46,4.6754]
[1760965146083,4.674,192.53,192.42,3.37579878]
[1760965146084,4.674,192.53,192.42,9.81150951]
[1760965146992,4.674,192.53,192.47,4.6751]
[1760965150992,4.6735,192.55,192.48,4.6749]
[1760965154498,4.85469968,192.68,192.54,3.37579878]
[1760965154698,3.37579878,192.69,192.54,3.37579878]
[1760965155089,3.37579878,192.63,192.5,9.81150951]
[1760965155294,3.37579878,192.62,192.49,3.37579878]
[1760965155597,4.6723,192.6,192.52,4.6739]
[1760965156096,4.6725,192.59,192.52,4.6739]
[1760965156697,3.37579878,192.62,192.5,4.6745]
[1760965156698,4.6728,192.58,192.5,4.6745]
[1760965157802,4.6722,192.6,192.51,4.6742]
[1760965158011,3.37579878,192.62,192.51,4.6742]
[1760965159103,4.6725,192.59,192.51,4.6742]
[1760965160103,4.672,192.61,192.49,3.37579878]
[1760965160505,4.672,192.61,192.52,3.37579878]
[1760965160705,4.6723,192.6,192.53,4.6736]
[1760965162703,3.37579878,192.66,192.52,3.37579878]
[1760965162704,4.6717,192.62,192.54,4.6734]
[1760965162910,3.37579878,192.66,192.52,3.37579878]
[1760965163106,4.49140315,192.68,192.55,3.37579878]
[1760965163411,4.49140315,192.67,192.55,3.37579878]
[1760965163612,4.49140315,192.68,192.55,3.37579878]
[1760965163912,4.6715,192.63,192.56,4.6729]
[1760965164313,4.49140315,192.65,192.53,3.37579878]
[1760965164613,3.37579878,192.66,192.53,3.37579878]
[1760965164812,4.49140315,192.65,192.53,3.37579878]
[1760965165014,4.6723,192.6,192.54,4.6734]
[1760965165316,4.49140315,192.64,192.54,4.6734]
[1760965165514,4.6717,192.62,192.55,4.6732]
[1760965165719,4.49039672,192.66,192.55,4.6732]
[1760965165914,4.49039672,192.68,192.55,4.6732]
[1760965166913,4.6715,192.63,192.56,4.6729]
[1760965168112,4.6718,192.62,192.54,4.6735]
[1760965168313,4.6718,192.62,192.53,3.37579878]
[1760965169822,4.6712,192.64,192.56,4.6729]
[1760965170121,4.6712,192.64,192.56,3.37579878]
[1760965170319,4.48695758,192.68,192.56,3.37579878]
[1760965170617,4.48695758,192.7,192.56,3.37579878]
[1760965170821,4.6707,192.66,192.56,3.37579878]
[1760965171411,4.6707,192.66,192.59,3.37579878]
[1760965171614,4.6703,192.68,192.59,3.37579878]
[1760965172021,4.48466176,192.71,192.57,3.37579878]
[1760965172022,4.48466176,192.7,192.57,3.37579878]
[1760965172216,3.37579878,192.71,192.57,3.37579878]
[1760965172721,2.15530064,192.68,192.59,2.15530064]
[1760965173112,2.15530064,192.68,192.54,6.43571073]
[1760965173521,2.15530064,192.68,192.6,2.15530064]
[1760965174229,4.6708,192.66,192.6,2.15530064]
[1760965175430,4.6711,192.65,192.6,2.15530064]
[1760965175827,2.15530064,192.68,192.6,2.15530064]
[1760965177034,4.6705,192.67,192.6,2.15530064]
[1760965178030,4.6705,192.67,192.6,6.82730064]
[1760965179230,4.6705,192.67,192.6,4.672]
[1760965179429,2.15530064,192.66,192.58,6.82780064]
[1760965179823,2.15530064,192.66,192.58,4.6725]
[1760965180328,24.9279,192.74,192.58,4.6725]
[1760965180531,6.82630064,192.65,192.59,4.6722]
[1760965181128,2.15530064,192.67,192.59,4.6722]
[1760965181638,4.6706,192.67,192.6,2.15530064]
[1760965182226,6.82540064,192.69,192.62,4.6715]
[1760965182426,4.6701,192.69,192.62,6.82680064]
[1760965182633,4.6701,192.69,192.62,2.15530064]
[1760965183925,4.6701,192.69,192.63,4.6713]
[1760965184325,2.15530064,192.71,192.63,4.6713]
[1760965186027,4.6698,192.7,192.63,4.6713]
[1760965188529,4.6701,192.69,192.63,4.6713]
[1760965191734,6.82540064,192.69,192.61,4.6717]
[1760965191936,6.82540064,192.69,192.61,2.15530064]
[1760965192522,4.6703,192.68,192.62,4.6715]
[1760965193328,4.6703,192.68,192.61,2.15530064]
[1760965193329,4.6703,192.68,192.63,4.6713]
[1760965195234,4.47352304,192.75,192.65,2.15530064]
[1760965195438,4.47352304,192.79,192.69,2.15530064]
[1760965195643,2.15530064,192.78,192.69,2.15530064]
[1760965196137,4.6684,192.76,192.71,4.6693]
[1760965196333,43.06,192.84,192.71,6.82460064]
[1760965196334,4.47352304,192.79,192.71,6.82460064]
[1760965196534,2.15530064,192.81,192.71,6.82460064]
[1760965197133,2.15530064,192.81,192.63,15.77851073]
[1760965197134,4.6679,192.78,192.63,15.77851073]
[1760965197331,4.6679,192.78,192.71,2.15530064]
[1760965199036,4.6679,192.78,192.71,6.82460064]
[1760965200438,6.82270064,192.8,192.73,2.15530064]
[1760965200742,4.6674,192.8,192.73,2.15530064]
[1760965201142,4.6676,192.79,192.73,6.82410064]
[1760965201547,2.15530064,192.81,192.73,2.15530064]
[1760965201839,4.6669,192.82,192.75,2.15530064]
[1760965202231,2.15530064,192.85,192.75,2.15530064]
[1760965202734,2.15530064,192.88,192.79,2.15530064]
[1760965203343,4.49197092,192.92,192.79,2.15530064]
[1760965203543,2.15530064,192.88,192.79,2.15530064]
[1760965204339,4.6656,192.87,192.81,2.15530064]
[1760965204531,0.90265349,192.94,192.86,2.15530064]
[1760965204932,4.6648,192.91,192.86,2.15530064]
[1760965205141,4.48073492,192.98,192.74,6.43571073]
[1760965205336,2.15530064,192.97,192.88,2.15530064]
[1760965205734,4.48073492,193.01,192.83,4.6663]
[1760965205939,2.15530064,192.94,192.84,2.15530064]
[1760965206141,2.15530064,192.92,192.73,16.97571073]
[1760965206349,2.15530064,192.94,192.85,2.15530064]
[1760965206643,4.48073492,193.01,192.91,2.15530064]
[1760965206832,2.15530064,193.0,192.91,2.15530064]
[1760965207031,4.6633,192.97,192.91,2.15530064]
[1760965207542,4.6643,192.93,192.87,2.15530064]
[1760965207733,4.48073492,193.03,192.85,2.15530064]
[1760965207734,2.15530064,192.94,192.85,2.15530064]
[1760965208338,20.05886381,193.04,192.85,2.15530064]
[1760965208339,2.15530064,192.95,192.85,2.15530064]
[1760965208844,2.15530064,192.95,192.87,2.15530064]
[1760965209735,2.15530064,192.96,192.87,2.15530064]
[1760965210340,4.6641,192.94,192.87,2.15530064]
[1760965210535,2.15530064,192.94,192.87,2.15530064]
[1760965210741,2.15530064,192.94,192.85,2.15530064]
[1760965210938,4.45454624,193.03,192.85,2.15530064]
[1760965211142,2.15530064,192.98,192.89,2.15530064]
[1760965212248,4.6635,192.96,192.75,9.3369]
[1760965212445,4.6635,192.96,192.9,2.15530064]
[1760965212943,4.6628,192.99,192.9,2.15530064]
[1760965213149,4.6628,192.99,192.73,10.54]
[1760965213150,4.6628,192.99,192.92,2.15530064]
[1760965213654,4.44803504,193.06,192.72,15.77371073]
[1760965213655,63.19803504,193.06,192.72,15.77371073]
[1760965213837,2.15530064,192.97,192.88,2.15530064]
[1760965214038,4.6639,192.94,192.87,2.15530064]
[1760965214551,2.15530064,192.94,192.85,2.15530064]
[1760965214738,4.6646,192.91,192.85,2.15530064]
[1760965215240,4.6646,192.91,192.81,4.6668]
[1760965215444,4.665,192.9,192.84,2.15530064]
[1760965215645,2.15530064,192.92,192.82,2.15530064]
[1760965216148,9.3249,193.0,192.84,2.15530064]
[1760965216149,2.15530064,192.94,192.84,2.15530064]
[1760965216747,4.44451089,192.99,192.86,2.15530064]
[1760965216954,2.15530064,192.95,192.86,2.15530064]
[1760965217248,2.15530064,192.91,192.82,2.15530064]
[1760965217652,2.15530064,192.89,192.8,2.15530064]
[1760965218057,2.15530064,192.91,192.81,2.15530064]
[1760965218244,2.15530064,192.89,192.81,2.15530064]
[1760965218855,2.15530064,192.89,192.79,2.15530064]
[1760965219050,2.15530064,192.87,192.79,2.15530064]
[1760965219948,9.3275,192.95,192.79,2.15530064]
[1760965220145,2.15530064,192.88,192.79,2.15530064]
[1760965220749,6.82080064,192.88,192.81,2.15530064]
[1760965221351,6.82080064,192.88,192.79,6.82270064]
[1760965221550,6.82100064,192.87,192.79,6.82270064]
[1760965221754,9.3275,192.95,192.75,2.15530064]
[1760965221755,2.15530064,192.85,192.75,2.15530064]
[1760965222954,6.82200064,192.83,192.75,2.15530064]
[1760965223149,2.15530064,192.83,192.75,2.15530064]
[1760965223353,2.15530064,192.83,192.68,13.82]
[1760965223354,2.15530064,192.83,192.73,2.15530064]
[1760965224450,2.15530064,192.8,192.73,2.15530064]
[1760965224756,2.15530064,192.84,192.75,2.15530064]
[1760965225260,9.328,192.94,192.77,2.15530064]
[1760965225451,2.15530064,192.86,192.77,2.15530064]
[1760965225648,2.15530064,192.87,192.68,13.82]
[1760965225852,2.15530064,192.83,192.69,9.3397]
[1760965226053,2.15530064,192.83,192.75,2.15530064]
[1760965226254,2.15530064,192.83,192.75,6.82370064]
[1760965226561,2.15530064,192.81,192.75,4.6684]
[1760965226761,5.37956488,192.87,192.75,4.6684]
[1760965227061,4.6667,192.83,192.75,4.6684]
[1760965230061,4.6667,192.83,192.76,4.6681]
[1760965230853,4.6667,192.83,192.74,4.6686]
[1760965230854,5.37956488,192.83,192.74,4.6686]
[1760965231765,4.6674,192.8,192.72,4.6691]
[1760965232262,4.6674,192.8,192.73,4.6688]
[1760965232757,4.6676,192.79,192.65,6.43571073]
[1760965232957,4.6676,192.79,192.63,50.98186488]
[1760965233157,4.6676,192.79,192.63,57.41757561]
[1760965233465,5.37956488,192.79,192.63,50.98186488]
[1760965234562,5.37956488,192.79,192.63,14.72186488]
[1760965234763,4.6681,192.77,192.63,9.3423]
[1760965235161,4.6684,192.76,192.69,4.6698]
[1760965237672,8.12383632,192.8,192.62,43.22]
[1760965238072,8.12383632,192.76,192.62,43.22]
[1760965239369,8.12383632,192.76,192.63,4.6712]
[1760965239876,4.6693,192.72,192.63,4.6712]
[1760965240177,8.12383632,192.76,192.63,4.6712]
[1760965240678,4.6698,192.7,192.63,4.6712]
[1760965241278,4.6701,192.69,192.62,43.22]
[1760965242074,4.6701,192.69,192.62,47.8914]
[1760965242472,4.6703,192.68,192.55,6.43571073]
[1760965242678,8.12383632,192.76,192.58,4.6725]
[1760965242982,60.54191993,192.76,192.54,49.63571073]
[1760965243182,56.03383632,192.76,192.54,49.63571073]
[1760965243479,66.93383632,192.76,192.54,49.63571073]
[1760965243782,23.71383632,192.76,192.54,49.63571073]
[1760965243975,4.6705,192.67,192.59,4.6722]
[1760965244981,4.67,192.69,192.54,49.63571073]
[1760965245276,15.71518704,192.73,192.57,8.12383632]
[1760965245883,17.45963632,192.78,192.57,8.12383632]
[1760965246079,4.6695,192.71,192.63,4.6712]
[1760965247785,4.6695,192.71,192.64,4.6709]
[1760965250483,4.6698,192.7,192.64,4.6709]
[1760965250685,4.6698,192.7,192.62,4.6715]
[1760965250884,24.9261,192.77,192.62,4.6715]
[1760965251186,24.9261,192.77,192.54,43.2]
[1760965251187,30.78156028,192.77,192.54,43.2]
[1760965251378,23.71383632,192.74,192.54,43.2]
[1760965251685,4.6707,192.66,192.57,4.6726]
[1760965252187,4.6707,192.66,192.54,43.2]
[1760965253081,4.6707,192.66,192.58,4.6724]
[1760965254382,8.12383632,192.7,192.56,4.6729]
[1760965254581,8.12383632,192.7,192.51,6.43571073]
[1760965255389,4.671,192.65,192.58,4.6724]
[1760965256188,8.12383632,192.7,192.56,4.6729]
[1760965257587,4.6712,192.64,192.56,4.6729]
[1760965259288,4.6706,192.66,192.58,4.6724]
[1760965259486,4.6706,192.66,192.52,6.43571073]
[1760965260196,4.6706,192.66,192.53,43.2]
[1760965260698,4.6706,192.66,192.54,43.2]
[1760965260900,4.6706,192.66,192.53,6.43571073]
[1760965261196,4.6706,192.66,192.54,43.2]
[1760965261497,25.11893492,192.77,192.55,6.43571073]
[1760965261698,9.336,192.77,192.55,49.63571073]
[1760965261891,9.336,192.77,192.56,6.43571073]
[1760965262389,4.6695,192.71,192.63,4.6711]
[1760965262589,4.6695,192.71,192.57,8.12383632]
[1760965262791,9.336,192.77,192.57,8.12383632]
[1760965262992,4.67,192.69,192.62,4.6714]
[1760965263300,9.3363,192.76,192.55,43.2]
[1760965263597,4.6702,192.68,192.61,4.6717]
[1760965264793,4.6704,192.67,192.59,4.6721]
[1760965264989,4.6704,192.67,192.55,43.2]
[1760965265386,4.6704,192.67,192.61,4.6716]
[1760965265586,4.6699,192.69,192.61,4.6716]
[1760965266102,8.12383632,192.74,192.61,4.6716]
[1760965266805,4.6704,192.67,192.61,4.6716]
[1760965267295,9.3379,192.73,192.55,43.2]
[1760965267602,15.59,192.73,192.55,43.2]
[1760965267801,58.81,192.73,192.55,43.2]
[1760965268000,15.59,192.73,192.55,43.2]
[1760965268394,58.81,192.72,192.55,43.2]
[1760965268796,4.6715,192.63,192.57,4.6726]
[1760965268998,3.36858555,192.66,192.55,43.2]
[1760965269499,4.672,192.61,192.55,47.8732]
[1760965271202,4.6723,192.6,192.53,4.6737]
[1760965277509,4.49393739,192.67,192.52,3.36858555]
[1760965277702,3.36858555,192.66,192.52,9.80429628]
[1760965278208,3.36858555,192.66,192.51,6.43571073]
[1760965278403,3.36858555,192.63,192.5,6.43571073]
[1760965278611,4.6722,192.6,192.5,6.43571073]
[1760965280111,4.6722,192.6,192.54,4.6735]
[1760965280900,4.6717,192.62,192.55,4.6732]
[1760965282707,4.672,192.61,192.55,4.6732]
[1760965284304,3.36858555,192.66,192.52,6.43571073]
[1760965284513,3.36858555,192.69,192.55,6.43571073]
[1760965285511,3.36858555,192.69,192.57,3.36858555]
[1760965285713,3.36858555,192.72,192.57,3.36858555]
[1760965286511,4.6696,192.71,192.57,9.80429628]
[1760965286712,4.6696,192.71,192.58,6.43571073]
[1760965287919,3.36858555,192.72,192.65,4.6708]
[1760965288117,4.669,192.73,192.6,9.80429628]
[1760965288519,3.36858555,192.75,192.6,9.80429628]
[1760965288520,8.03718555,192.75,192.6,9.80429628]
[1760965288819,8.03718555,192.75,192.63,3.36858555]
[1760965289705,8.03648555,192.78,192.63,3.36858555]
[1760965290106,3.36858555,192.78,192.66,3.36858555]
[1760965290409,4.51122188,192.79,192.66,3.36858555]
[1760965290613,3.36858555,192.81,192.66,3.36858555]
[1760965291119,4.6679,192.78,192.7,4.6695]
[1760965291317,3.36858555,192.81,192.66,3.36858555]
[1760965291514,3.36858555,192.81,192.66,9.80429628]
[1760965292116,3.36858555,192.78,192.64,6.43571073]
[1760965292321,3.36858555,192.78,192.63,9.80429628]
[1760965293123,4.6682,192.76,192.67,4.6702]
[1760965293816,4.6682,192.76,192.68,4.67]
[1760965294215,4.6682,192.76,192.63,9.80429628]
[1760965294408,8.03718555,192.75,192.66,4.6706]
[1760965296618,4.6688,192.74,192.66,4.6706]
[1760965296820,2.15416911,192.71,192.66,4.6706]
[1760965297416,2.15416911,192.71,192.64,4.6711]
[1760965297724,2.15416911,192.69,192.64,4.6711]
[1760965298120,2.15416911,192.69,192.61,6.43571073]
[1760965298320,15.59,192.8,192.59,9.73259891]
[1760965298321,2.15416911,192.67,192.59,6.43571073]
[1760965298617,2.15416911,192.67,192.58,8.58987984]
[1760965298823,2.15416911,192.67,192.61,4.6718]
[1760965301113,2.15416911,192.67,192.59,4.6723]
[1760965301319,2.15416911,192.63,192.56,6.43571073]
[1760965301627,2.15416911,192.63,192.54,6.43571073]
[1760965303024,4.6708,192.66,192.57,4.6728]
[1760965303233,2.15416911,192.64,192.54,6.43571073]
[1760965303725,2.15416911,192.64,192.55,8.58987984]
[1760965304129,2.15416911,192.62,192.54,6.43571073]
[1760965304725,2.15416911,192.6,192.54,6.43571073]
[1760965304926,2.15416911,192.6,192.53,6.43571073]
[1760965305231,2.15416911,192.6,192.52,6.43571073]
[1760965305533,2.15416911,192.6,192.55,4.6731]
[1760965306328,4.6715,192.63,192.52,6.43571073]
[1760965306528,2.15416911,192.62,192.53,2.15416911]
[1760965307529,2.15416911,192.62,192.55,4.6731]
[1760965308925,4.6709,192.65,192.56,4.6729]
[1760965309126,2.15416911,192.63,192.56,4.6729]
[1760965310026,4.6703,192.68,192.57,2.15416911]
[1760965310222,2.15416911,192.67,192.57,2.15416911]
[1760965310422,2.15416911,192.66,192.56,2.15416911]
[1760965311231,6.82496911,192.66,192.59,4.6721]
[1760965312432,6.82496911,192.66,192.56,2.15416911]
[1760965312433,6.82496911,192.66,192.6,4.6719]
[1760965313027,4.6708,192.66,192.6,6.82606911]
[1760965314032,4.6708,192.66,192.6,4.6719]
[1760965315026,4.671,192.65,192.58,6.82656911]
[1760965315937,4.6712,192.64,192.58,6.82656911]
[1760965316127,2.15416911,192.64,192.56,6.82706911]
[1760965316437,4.6714,192.63,192.56,2.15416911]
[1760965317029,4.6714,192.63,192.58,2.15416911]
[1760965317229,2.15416911,192.66,192.58,2.15416911]
[1760965317230,4.671,192.65,192.58,6.82656911]
[1760965317425,2.15416911,192.63,192.55,6.43571073]
[1760965317732,4.6716,192.62,192.56,4.6729]
[1760965318122,4.6716,192.62,192.56,6.82706911]
[1760965318327,4.6719,192.61,192.56,6.82706911]
[1760965318527,4.6719,192.61,192.56,2.15416911]
[1760965318932,4.6715,192.63,192.58,2.15416911]
[1760965319232,2.15416911,192.69,192.6,2.15416911]
[1760965319434,4.6703,192.68,192.62,2.15416911]
[1760965319633,2.15416911,192.69,192.6,4.6719]
[1760965319938,2.15416911,192.69,192.61,2.15416911]
[1760965320328,2.15416911,192.71,192.61,6.82586911]
[1760965320525,2.15416911,192.71,192.55,6.43571073]
[1760965320832,2.15416911,192.71,192.63,2.15416911]
[1760965321033,2.15416911,192.71,192.59,4.6722]
[1760965321237,2.15416911,192.67,192.59,4.6722]
[1760965321539,2.15416911,192.69,192.59,6.82636911]
[1760965321735,4.6708,192.66,192.61,2.15416911]
[1760965322128,4.6708,192.66,192.6,2.15416911]
[1760965322951,4.6708,192.66,192.61,4.6716]
[1760965323627,4.6708,192.66,192.58,2.15416911]
[1760965323828,6.82436911,192.68,192.6,2.15416911]
[1760965325042,6.82436911,192.68,192.62,4.6715]
[1760965327337,6.82436911,192.68,192.56,6.43571073]
[1760965327338,4.6705,192.67,192.6,4.6719]
[1760965327734,4.48305474,192.72,192.6,4.6719]
[1760965327735,2.15416911,192.66,192.6,4.6719]
[1760965328940,4.671,192.65,192.6,4.6719]
[1760965329440,2.15416911,192.66,192.61,4.6717]
[1760965329641,6.82486911,192.66,192.61,4.6717]
[1760965330543,4.6702,192.68,192.62,4.6714]
[1760965331043,4.6702,192.68,192.6,2.15416911]
[1760965331044,6.82466911,192.67,192.6,4.6719]
[1760965331630,4.6707,192.66,192.6,4.6719]
[1760965332348,2.15416911,192.72,192.64,2.15416911]
[1760965332546,2.15416911,192.72,192.62,2.15416911]
[1760965332847,2.15416911,192.68,192.59,6.43571073]
[1760965333046,2.15416911,192.68,192.64,4.6709]
[1760965333246,2.15416911,192.68,192.59,6.43571073]
[1760965334746,4.483357,192.76,192.6,2.15416911]
[1760965334943,2.15416911,192.72,192.62,8.58987984]
[1760965335146,2.15416911,192.72,192.67,4.6702]
[1760965335533,2.15416911,192.74,192.64,2.15416911]
[1760965335737,2.15416911,192.74,192.69,4.6697]
[1760965336542,2.15416911,192.78,192.68,2.15416911]
[1760965336943,2.15416911,192.78,192.68,8.58987984]
[1760965337150,2.15416911,192.78,192.74,4.6685]
[1760965337345,2.15416911,192.8,192.74,4.6685]
[1760965338035,2.15416911,192.78,192.74,4.6685]
[1760965338349,2.15416911,192.78,192.72,4.6691]
[1760965338538,2.15416911,192.78,192.68,2.15416911]
[1760965339341,2.15416911,192.78,192.74,4.6685]
[1760965339542,2.15416911,192.8,192.7,2.15416911]
[1760965339946,2.15416911,192.78,192.68,2.15416911]
[1760965340450,2.15416911,192.73,192.64,6.43571073]
[1760965340748,2.15416911,192.7,192.62,6.43571073]
[1760965341139,2.15416911,192.7,192.65,4.6707]
[1760965341951,2.15416911,192.7,192.61,8.58987984]
[1760965342340,2.15416911,192.72,192.63,2.15416911]
[1760965342651,2.15416911,192.72,192.66,4.6704]
[1760965342837,2.15416911,192.7,192.61,2.15416911]
[1760965343146,2.15416911,192.7,192.64,4.671]
[1760965344448,2.15416911,192.7,192.65,4.6707]
[1760965346155,2.15416911,192.72,192.66,4.6704]
[1760965346554,6.82336911,192.72,192.66,4.6704]
[1760965346755,2.15416911,192.7,192.66,4.6704]
[1760965349446,4.6686,192.74,192.67,4.6702]
[1760965349646,2.15416911,192.72,192.67,4.6702]
[1760965350146,4.6686,192.74,192.68,4.6699]
[1760965350357,2.15416911,192.73,192.68,4.6699]
[1760965350857,2.15416911,192.71,192.65,4.6706]
[1760965352057,6.82366911,192.71,192.65,4.6706]
[1760965353166,2.15416911,192.69,192.63,4.6712]
[1760965354459,6.82416911,192.69,192.63,4.6712]
[1760965354851,6.82416911,192.69,192.61,4.6717]
[1760965354852,2.15416911,192.69,192.61,4.6717]
[1760965355060,4.6702,192.68,192.61,2.15416911]
[1760965355255,2.15416911,192.69,192.63,4.6712]
[1760965356461,2.15416911,192.69,192.64,4.6709]
[1760965356661,4.6697,192.7,192.64,4.6709]
[1760965357163,3.36674263,192.72,192.59,6.43571073]
[1760965357164,4.6699,192.69,192.62,4.6714]
[1760965359866,4.6699,192.69,192.63,4.6711]
[1760965360069,3.36674263,192.72,192.59,6.43571073]
[1760965360070,4.6694,192.71,192.59,6.43571073]